bitfinex/quotes_SOLUSD_20230120
["timestamp","ask_amount","ask_price","bid_price","bid_amount"]
[1674258278751,20.0,25.565,25.531,28.35]
[1674258279074,20.0,25.565,25.532,59.54]
[1674258279261,23.75576951,25.564,25.532,59.54]
[1674258279472,20.0,25.563,25.532,20.0]
[1674258279682,20.0,25.563,25.533,20.0]
[1674258280114,43.75576951,25.563,25.532,20.0]
[1674258280330,17.0,25.562,25.527,48.43]
[1674258280538,17.0,25.562,25.528,39.54]
[1674258280728,20.0,25.561,25.532,39.54]
[1674258280939,20.0,25.561,25.533,20.0]
[1674258281150,20.0,25.56,25.533,20.0]
[1674258281470,2.76614,25.559,25.533,20.0]
[1674258281672,20.0,25.558,25.523,20.0]
[1674258281881,20.0,25.558,25.524,28.44]
[1674258282091,17.0,25.557,25.525,39.54]
[1674258282538,20.0,25.556,25.525,39.54]
[1674258283245,46.52190951,25.558,25.524,28.44]
[1674258283246,22.76614,25.558,25.53,20.59]
[1674258283473,20.0,25.558,25.531,68.08]
[1674258283681,20.0,25.559,25.531,91.83576951]
[1674258284005,196.59758598,25.612,25.531,91.83576951]
[1674258284006,20.0,25.588,25.55,20.59]
[1674258284208,111.3186,25.582,25.551,45.52]
[1674258284419,111.3186,25.582,25.551,69.27576951]
[1674258284631,20.0,25.581,25.553,20.0]
[1674258284833,20.0,25.581,25.554,37.0]
[1674258285042,20.0,25.581,25.554,60.75576951]
[1674258285257,20.0,25.581,25.555,39.54]
[1674258285579,20.0,25.581,25.557,20.0]
[1674258285807,20.0,25.581,25.56,20.43]
[1674258286019,20.0,25.581,25.562,20.0]
[1674258286326,20.0,25.581,25.563,20.0]
[1674258286516,20.0,25.581,25.564,17.0]
[1674258286727,20.0,25.581,25.565,20.0]
[1674258286938,20.0,25.581,25.566,17.0]
[1674258287154,20.0,25.581,25.567,20.0]
[1674258287365,20.0,25.581,25.555,23.75576951]
[1674258287576,20.0,25.58,25.542,27.91]
[1674258287775,49.33,25.58,25.549,23.75576951]
[1674258287990,20.0,25.579,25.55,20.0]
[1674258288621,20.0,25.579,25.551,23.75576951]
[1674258288829,20.0,25.579,25.552,27.9]
[1674258289049,20.0,25.579,25.555,39.54]
[1674258289470,20.0,25.579,25.556,56.54]
[1674258289677,19.5,25.579,25.557,20.0]
[1674258289896,19.5,25.579,25.558,17.0]
[1674258290223,19.5,25.579,25.559,20.0]
[1674258290404,19.5,25.579,25.56,37.59]
[1674258290618,19.5,25.579,25.561,20.0]
[1674258290829,20.0,25.581,25.562,17.0]
[1674258291036,20.0,25.581,25.563,40.0]
[1674258291249,20.0,25.581,25.564,17.0]
[1674258291472,20.0,25.581,25.57,20.63]
[1674258291690,20.0,25.586,25.571,37.0]
[1674258293159,20.0,25.595,25.571,37.0]
[1674258294424,20.0,25.595,25.571,60.75576951]
[1674258294812,20.0,25.59,25.571,60.75576951]
[1674258295048,20.0,25.59,25.571,100.29576951]
[1674258296708,20.0,25.59,25.571,59.54]
[1674258296914,20.0,25.59,25.571,39.54]
[1674258297127,20.0,25.587,25.571,39.54]
[1674258297761,20.0,25.587,25.572,20.0]
[1674258297972,20.0,25.587,25.572,43.75576951]
[1674258298188,20.0,25.59,25.572,43.75576951]
[1674258298511,119.3972,25.601,25.574,20.0]
[1674258298724,119.3972,25.601,25.58,20.59]
[1674258298935,119.3972,25.601,25.581,37.0]
[1674258299147,119.3972,25.601,25.581,60.75576951]
[1674258299339,119.3972,25.601,25.582,23.75576951]
[1674258299545,119.3972,25.601,25.57,20.48]
[1674258299756,20.0,25.598,25.572,20.0]
[1674258301144,20.0,25.598,25.57,48.35]
[1674258301470,20.0,25.598,25.547,39.54]
[1674258301471,20.0,25.589,25.547,39.54]
[1674258301665,32.08614,25.588,25.546,20.0]
[1674258301872,20.0,25.586,25.548,20.0]
[1674258302079,29.32,25.585,25.549,27.73]
[1674258302507,41.71576951,25.584,25.548,5.94219408]
[1674258302727,52.08614,25.583,25.541,20.0]
[1674258303043,39.76614,25.582,25.542,47.74]
[1674258303255,52.08614,25.581,25.542,47.74]
[1674258303466,118.0,25.579,25.542,20.0]
[1674258303662,171.05614,25.578,25.531,47.75]
[1674258303868,118.0,25.575,25.532,20.0]
[1674258304109,49.09614,25.574,25.533,48.33]
[1674258304289,2.76614,25.573,25.533,48.33]
[1674258304499,29.33,25.572,25.533,28.33]
[1674258304709,20.0,25.57,25.535,20.0]
[1674258304919,20.0,25.57,25.536,28.32]
[1674258305139,20.0,25.569,25.536,51.39274659]
[1674258305455,20.0,25.57,25.537,23.07274659]
[1674258305669,20.0,25.57,25.54,20.49]
[1674258305868,115.8341,25.572,25.541,48.32]
[1674258306073,20.0,25.576,25.55,20.43]
[1674258306282,20.0,25.59,25.551,65.31]
[1674258306283,29.32,25.588,25.551,65.31]
[1674258306488,112.84,25.58,25.552,39.54]
[1674258306722,29.32,25.588,25.554,20.0]
[1674258306946,112.84,25.587,25.56,20.64]
[1674258307124,112.84,25.587,25.561,37.0]
[1674258307336,112.84,25.587,25.561,60.07274659]
[1674258307767,20.0,25.583,25.561,60.07274659]
[1674258308175,20.0,25.583,25.561,37.0]
[1674258308401,49.08614,25.582,25.561,20.0]
[1674258308622,2.76614,25.581,25.554,23.07274659]
[1674258308803,2.76614,25.581,25.555,20.0]
[1674258308804,49.33,25.58,25.555,20.0]
[1674258309227,20.0,25.58,25.557,20.0]
[1674258309441,20.0,25.58,25.558,20.0]
[1674258309652,20.0,25.58,25.558,43.07274659]
[1674258309865,29.32,25.588,25.56,20.43]
[1674258310080,20.0,25.59,25.562,20.0]
[1674258310277,20.0,25.59,25.563,47.88]
[1674258310494,20.0,25.59,25.564,17.0]
[1674258310699,20.0,25.586,25.565,20.0]
[1674258310914,20.0,25.586,25.567,20.0]
[1674258311126,20.0,25.586,25.568,37.0]
[1674258311752,20.0,25.586,25.554,27.89]
[1674258311965,53.07576951,25.585,25.555,20.0]
[1674258312483,29.32,25.585,25.555,20.0]
[1674258312693,43.75576951,25.584,25.551,20.0]
[1674258312922,49.08614,25.583,25.543,39.54]
[1674258313136,22.76614,25.582,25.543,39.54]
[1674258313348,20.0,25.58,25.545,39.54]
[1674258313548,49.33,25.579,25.544,20.0]
[1674258313761,20.0,25.578,25.545,39.54]
[1674258313974,29.33,25.577,25.545,39.54]
[1674258314374,20.0,25.576,25.545,39.54]
[1674258314605,20.0,25.576,25.546,20.0]
[1674258315012,20.0,25.576,25.547,20.0]
[1674258315541,20.0,25.576,25.541,48.23]
[1674258315542,20.0,25.574,25.546,20.0]
[1674258315766,20.0,25.574,25.541,48.23]
[1674258315767,20.0,25.574,25.542,20.0]
[1674258315948,43.75576951,25.574,25.542,20.0]
[1674258316289,20.0,25.574,25.542,20.0]
[1674258316474,20.0,25.574,25.542,48.24]
[1674258316685,20.0,25.574,25.543,20.0]
[1674258316901,20.0,25.574,25.544,39.54]
[1674258317111,43.75576951,25.574,25.545,20.0]
[1674258317326,49.33,25.573,25.538,28.24]
[1674258317544,20.0,25.572,25.54,20.0]
[1674258317740,20.0,25.572,25.541,20.0]
[1674258318064,20.0,25.572,25.543,39.54]
[1674258318065,43.75576951,25.572,25.543,39.54]
[1674258318276,112.7636,25.571,25.545,39.54]
[1674258318486,112.7636,25.571,25.546,36.0]
[1674258318797,20.0,25.57,25.546,36.0]
[1674258320896,20.0,25.57,25.546,20.0]
[1674258321106,20.0,25.57,25.536,28.23]
[1674258321107,20.0,25.569,25.536,28.23]
[1674258321521,20.0,25.569,25.537,20.0]
[1674258321747,20.0,25.568,25.537,20.0]
[1674258322474,20.0,25.568,25.538,17.0]
[1674258322799,20.0,25.568,25.533,28.33]
[1674258323117,92.86190951,25.567,25.528,23.20771138]
[1674258323329,2.76614,25.566,25.534,23.20771138]
[1674258323522,20.0,25.565,25.535,79.54]
[1674258323936,20.0,25.565,25.535,102.74771138]
[1674258324373,20.0,25.565,25.535,79.54]
[1674258324582,20.0,25.565,25.537,20.0]
[1674258324886,20.0,25.565,25.538,17.0]
[1674258325097,20.0,25.565,25.539,20.0]
[1674258325544,20.0,25.563,25.539,20.0]
[1674258325849,20.0,25.563,25.535,20.0]
[1674258326173,20.0,25.565,25.514,109.74910667]
[1674258326174,20.0,25.57,25.54,46.41542276]
[1674258326479,20.0,25.57,25.541,48.35]
[1674258326674,20.0,25.569,25.541,20.0]
[1674258326885,20.0,25.568,25.538,20.0]
[1674258327128,20.0,25.568,25.539,20.0]
[1674258327631,20.0,25.568,25.54,43.20771138]
[1674258327861,20.0,25.568,25.541,65.35]
[1674258328048,20.0,25.568,25.541,88.55771138]
[1674258328460,20.0,25.568,25.543,20.0]
[1674258328674,20.0,25.568,25.544,104.67]
[1674258328994,20.0,25.568,25.545,82.74771138]
[1674258329211,20.0,25.568,25.546,65.13]
[1674258329408,20.0,25.568,25.547,20.0]
[1674258329739,20.0,25.568,25.548,37.0]
[1674258329934,20.0,25.568,25.548,60.20771138]
[1674258330452,20.0,25.568,25.548,43.20771138]
[1674258330668,20.0,25.568,25.548,20.0]
[1674258330894,20.0,25.568,25.544,28.13]
[1674258330895,20.0,25.568,25.545,20.0]
[1674258331318,20.0,25.568,25.545,43.20771138]
[1674258331734,20.0,25.568,25.545,20.0]
[1674258331941,20.0,25.568,25.545,39.54]
[1674258332150,20.0,25.568,25.546,20.0]
[1674258332357,20.0,25.568,25.547,17.0]
[1674258332557,20.0,25.568,25.548,20.0]
[1674258332767,20.0,25.568,25.549,17.0]
[1674258332982,20.0,25.568,25.55,20.0]
[1674258333195,20.0,25.568,25.551,17.0]
[1674258333504,20.0,25.568,25.552,20.0]
[1674258333716,20.0,25.568,25.553,17.0]
[1674258333939,20.0,25.568,25.554,20.0]
[1674258334152,20.0,25.568,25.555,17.0]
[1674258334766,20.0,25.568,25.556,20.0]
[1674258334974,20.0,25.568,25.557,17.0]
[1674258336050,20.0,25.583,25.557,17.0]
[1674258336257,119.4637,25.583,25.558,20.0]
[1674258336471,20.0,25.582,25.559,20.0]
[1674258336680,20.0,25.582,25.56,20.0]
[1674258336991,20.0,25.582,25.561,20.0]
[1674258337179,20.0,25.582,25.562,20.0]
[1674258337389,20.0,25.582,25.563,17.0]
[1674258337599,20.0,25.582,25.564,20.0]
[1674258337809,20.0,25.582,25.565,17.0]
[1674258338039,20.0,25.582,25.566,20.0]
[1674258338250,20.0,25.582,25.567,17.0]
[1674258338875,20.0,25.595,25.571,39.54]
[1674258339082,20.0,25.595,25.572,64.88]
[1674258339407,20.0,25.595,25.572,37.0]
[1674258339616,20.0,25.595,25.572,20.0]
[1674258339926,20.0,25.595,25.563,20.0]
[1674258340140,20.64,25.59,25.563,20.0]
[1674258340348,20.64,25.59,25.555,39.54]
[1674258340349,20.0,25.588,25.556,20.0]
[1674258340545,32.08614,25.587,25.541,20.0]
[1674258340750,32.08614,25.587,25.542,27.88]
[1674258340751,19.76614,25.586,25.542,27.88]
[1674258340961,20.64,25.58,25.544,39.54]
[1674258341179,20.64,25.58,25.543,20.0]
[1674258341180,20.0,25.578,25.545,59.54]
[1674258341396,32.09614,25.577,25.534,20.0]
[1674258341604,2.76614,25.576,25.535,27.89]
[1674258342013,2.76614,25.576,25.536,43.20771138]
[1674258342231,109.9008,25.575,25.537,27.89]
[1674258342435,20.0,25.574,25.538,20.0]
[1674258342644,17.0,25.573,25.539,27.89]
[1674258342966,17.0,25.573,25.54,39.54]
[1674258342967,22.76614,25.572,25.54,39.54]
[1674258343183,17.0,25.571,25.542,39.54]
[1674258343394,20.0,25.57,25.539,27.89]
[1674258343598,39.76614,25.569,25.531,28.27]
[1674258343803,52.10614,25.568,25.528,28.28]
[1674258344014,137.76614,25.567,25.529,39.54]
[1674258344225,137.76614,25.567,25.523,20.0]
[1674258344226,2.76614,25.566,25.53,28.27]
[1674258344435,20.0,25.565,25.524,28.28]
[1674258344773,19.76614,25.564,25.524,28.28]
[1674258344975,2.76614,25.563,25.524,28.28]
[1674258345179,2.76614,25.563,25.525,39.54]
[1674258345407,2.76614,25.563,25.523,20.0]
[1674258345408,20.0,25.562,25.527,39.54]
[1674258345602,17.0,25.561,25.529,39.54]
[1674258345819,2.76614,25.56,25.531,39.54]
[1674258346037,122.57424,25.56,25.533,39.54]
[1674258346247,122.57424,25.56,25.52,20.0]
[1674258346248,20.64,25.55,25.503,43.1098661]
[1674258346469,32.12614,25.549,25.504,20.0]
[1674258346678,139.8081,25.548,25.513,23.20771138]
[1674258346992,156.8081,25.548,25.514,28.42]
[1674258347176,20.0,25.547,25.515,59.54]
[1674258347620,20.0,25.545,25.515,39.54]
[1674258348256,20.0,25.545,25.517,20.0]
[1674258348654,20.0,25.545,25.518,20.0]
[1674258349191,20.0,25.545,25.516,20.0]
[1674258349409,20.0,25.545,25.515,39.54]
[1674258349812,20.0,25.545,25.514,20.0]
[1674258350118,20.0,25.545,25.515,28.73]
[1674258350330,20.0,25.545,25.516,20.0]
[1674258350765,20.0,25.545,25.517,20.0]
[1674258351399,20.0,25.545,25.516,20.0]
[1674258351609,20.0,25.545,25.517,20.0]
[1674258351935,20.0,25.545,25.516,20.0]
[1674258352142,2.76614,25.549,25.52,20.59]
[1674258352327,130.9129,25.559,25.531,39.54]
[1674258352542,130.9129,25.559,25.533,39.54]
[1674258352752,130.9129,25.559,25.535,20.0]
[1674258352963,130.9129,25.559,25.536,20.0]
[1674258353174,130.9129,25.559,25.534,20.0]
[1674258353425,23.75576951,25.558,25.535,17.0]
[1674258353606,20.0,25.557,25.536,20.0]
[1674258353909,26.52190951,25.556,25.534,20.0]
[1674258354135,20.0,25.557,25.534,20.0]
[1674258354345,20.0,25.557,25.524,23.75576951]
[1674258354544,20.0,25.557,25.525,48.7]
[1674258354759,20.0,25.557,25.526,20.0]
[1674258354965,20.0,25.557,25.527,65.7]
[1674258355290,20.0,25.557,25.528,20.0]
[1674258355505,20.0,25.557,25.53,59.54]
[1674258355699,20.0,25.557,25.532,39.54]
[1674258355920,20.0,25.557,25.534,39.54]
[1674258356121,26.52190951,25.556,25.535,20.0]
[1674258356338,52.11614,25.555,25.531,20.0]
[1674258356544,19.76614,25.554,25.531,20.0]
[1674258356747,22.76614,25.553,25.525,20.0]
[1674258356957,17.0,25.552,25.525,20.0]
[1674258357195,20.0,25.551,25.518,59.54]
[1674258357385,19.76614,25.55,25.519,20.0]
[1674258357601,19.76614,25.55,25.517,20.0]
[1674258357602,22.76614,25.549,25.517,20.0]
[1674258357811,19.76614,25.548,25.517,20.0]
[1674258358134,19.76614,25.548,25.514,28.42]
[1674258358135,20.0,25.546,25.515,20.0]
[1674258358654,20.0,25.546,25.511,43.75576951]
[1674258358655,20.0,25.546,25.512,28.7]
[1674258358866,117.232,25.545,25.515,23.75576951]
[1674258359074,117.232,25.545,25.514,28.7]
[1674258359296,20.0,25.544,25.514,28.7]
[1674258359604,17.0,25.543,25.513,28.7]
[1674258359818,20.0,25.544,25.509,20.0]
[1674258360018,17.0,25.543,25.51,48.7]
[1674258360227,22.76614,25.544,25.511,20.0]
[1674258360426,70.12576951,25.543,25.505,28.71]
[1674258360638,46.52190951,25.542,25.501,23.75576951]
[1674258360844,20.0,25.54,25.505,20.0]
[1674258361057,49.37,25.539,25.505,20.0]
[1674258361585,20.0,25.538,25.506,28.91]
[1674258361916,20.0,25.538,25.51,20.59]
[1674258362132,20.0,25.538,25.512,20.0]
[1674258362449,20.0,25.538,25.513,28.91]
[1674258362637,20.0,25.538,25.515,20.0]
[1674258362846,20.0,25.538,25.516,17.0]
[1674258363057,20.0,25.538,25.517,20.0]
[1674258363263,53.12576951,25.537,25.514,20.0]
[1674258363805,20.0,25.535,25.504,20.0]
[1674258364018,19.76614,25.534,25.504,20.0]
[1674258364236,22.76614,25.533,25.504,20.0]
[1674258364422,20.0,25.531,25.504,20.0]
[1674258364629,17.0,25.53,25.504,20.0]
[1674258364857,119.2222,25.529,25.504,20.0]
[1674258365067,20.0,25.528,25.504,20.0]
[1674258366002,22.76614,25.528,25.504,20.0]
[1674258366216,49.15614,25.527,25.504,20.0]
[1674258366429,2.76614,25.526,25.505,23.75576951]
[1674258366642,2.76614,25.526,25.506,20.0]
[1674258366843,26.52190951,25.526,25.506,20.0]
[1674258367051,20.0,25.524,25.506,20.0]
[1674258367265,2.76614,25.523,25.504,20.0]
[1674258367476,19.76614,25.523,25.483,29.19]
[1674258368102,138.64,25.52,25.483,29.19]
[1674258368314,39.76614,25.519,25.482,29.19]
[1674258368519,39.76614,25.519,25.475,29.2]
[1674258368520,2.76614,25.518,25.475,29.2]
[1674258368743,20.0,25.517,25.476,20.0]
[1674258369063,2.76614,25.516,25.478,20.0]
[1674258369278,2.76614,25.516,25.479,49.19]
[1674258369489,2.76614,25.516,25.479,72.94576951]
[1674258369690,2.76614,25.516,25.48,23.75576951]
[1674258369892,19.76614,25.516,25.481,49.19]
[1674258370097,20.0,25.515,25.482,20.0]
[1674258370307,17.0,25.514,25.483,49.23]
[1674258370741,2.76614,25.513,25.483,20.0]
[1674258370958,20.0,25.512,25.481,20.0]
[1674258371284,20.0,25.512,25.484,23.75576951]
[1674258371475,20.0,25.512,25.485,49.22]
[1674258372001,20.0,25.512,25.486,20.0]
[1674258372240,20.0,25.512,25.487,20.0]
[1674258372535,2.76614,25.511,25.487,20.0]
[1674258372740,2.76614,25.511,25.483,20.0]
[1674258372954,20.0,25.51,25.483,20.0]
[1674258373156,20.0,25.51,25.484,29.28]
[1674258373368,109.571,25.509,25.485,20.0]
[1674258373567,20.0,25.508,25.487,20.0]
[1674258373778,20.0,25.508,25.488,20.0]
[1674258374003,20.0,25.508,25.487,20.0]
[1674258374217,20.0,25.508,25.488,20.0]
[1674258374626,2.76614,25.511,25.489,49.27]
[1674258374841,129.571,25.519,25.49,40.64]
[1674258375040,129.571,25.519,25.492,20.0]
[1674258375253,129.571,25.519,25.493,49.27]
[1674258375580,129.571,25.519,25.494,17.0]
[1674258375793,129.571,25.519,25.495,49.27]
[1674258375999,129.571,25.519,25.496,17.0]
[1674258376195,129.571,25.519,25.497,20.0]
[1674258376405,129.571,25.519,25.498,17.0]
[1674258376636,129.571,25.519,25.499,20.0]
[1674258376849,129.571,25.519,25.5,17.0]
[1674258377035,129.571,25.519,25.501,20.0]
[1674258377247,129.571,25.519,25.502,17.0]
[1674258377465,129.571,25.519,25.503,20.0]
[1674258378306,129.571,25.519,25.491,20.0]
[1674258378505,129.571,25.519,25.493,20.0]
[1674258378725,129.571,25.519,25.494,20.0]
[1674258379151,129.571,25.519,25.495,17.0]
[1674258379345,129.571,25.519,25.496,20.0]
[1674258379771,17.0,25.517,25.496,20.0]
[1674258380004,20.0,25.516,25.496,20.0]
[1674258380224,20.0,25.516,25.486,23.75576951]
[1674258380414,20.0,25.516,25.483,49.14]
[1674258380415,20.0,25.516,25.487,49.14]
[1674258380619,17.0,25.515,25.484,29.14]
[1674258380831,19.284281,25.514,25.486,20.0]
[1674258381157,19.284281,25.514,25.487,17.5]
[1674258381369,19.284281,25.514,25.488,29.14]
[1674258381685,22.050421,25.514,25.487,17.5]
[1674258382000,20.0,25.512,25.481,29.15]
[1674258382207,17.0,25.511,25.481,29.15]
[1674258382521,20.0,25.51,25.481,29.15]
[1674258382738,19.76614,25.509,25.477,29.33]
[1674258382929,22.76614,25.508,25.477,29.33]
[1674258383133,22.76614,25.508,25.47,20.64]
[1674258383134,19.76614,25.507,25.472,29.34]
[1674258383346,2.76614,25.506,25.472,20.0]
[1674258383555,20.0,25.505,25.473,49.34]
[1674258383880,20.0,25.503,25.473,49.34]
[1674258384083,17.0,25.502,25.473,49.34]
[1674258384405,20.0,25.501,25.473,49.34]
[1674258384818,20.0,25.499,25.473,49.34]
[1674258385360,20.0,25.499,25.473,29.34]
[1674258385672,20.0,25.499,25.471,29.45]
[1674258386494,19.76614,25.498,25.465,29.46]
[1674258386731,2.76614,25.497,25.466,20.0]
[1674258386914,20.0,25.496,25.467,49.46]
[1674258387124,20.0,25.496,25.468,20.0]
[1674258387331,2.76614,25.495,25.469,29.45]
[1674258387561,2.76614,25.495,25.471,20.0]
[1674258387780,2.76614,25.495,25.472,20.0]
[1674258387961,2.76614,25.495,25.473,20.0]
[1674258388178,2.76614,25.495,25.473,29.45]
[1674258388390,2.76614,25.495,25.475,20.0]
[1674258388617,2.76614,25.495,25.476,37.0]
[1674258389332,2.76614,25.495,25.476,20.0]
[1674258389560,2.76614,25.495,25.471,20.0]
[1674258389561,2.76614,25.495,25.473,20.0]
[1674258389777,2.76614,25.495,25.472,20.0]
[1674258390085,19.76614,25.495,25.472,20.0]
[1674258390297,20.0,25.494,25.472,20.0]
[1674258390511,20.0,25.494,25.466,20.0]
[1674258390722,20.0,25.494,25.467,29.46]
[1674258390916,20.0,25.494,25.468,20.0]
[1674258391129,20.0,25.494,25.469,49.05]
[1674258391349,20.0,25.494,25.47,20.0]
[1674258391555,20.0,25.494,25.471,29.05]
[1674258391766,20.0,25.494,25.473,20.0]
[1674258392088,20.0,25.494,25.473,49.04]
[1674258392296,2.76614,25.495,25.474,20.0]
[1674258392496,29.41,25.509,25.474,20.0]
[1674258392497,20.0,25.51,25.48,19.08]
[1674258392704,114.7257,25.515,25.49,19.53]
[1674258392912,114.7257,25.515,25.491,46.02]
[1674258393142,117.49184,25.515,25.492,37.0]
[1674258393546,2.76614,25.515,25.492,60.20456119]
[1674258393751,20.0,25.518,25.494,20.0]
[1674258393964,20.0,25.518,25.495,66.02]
[1674258394170,20.0,25.518,25.495,112.42912238]
[1674258394392,20.0,25.518,25.496,23.20456119]
[1674258394594,20.0,25.518,25.497,65.51]
[1674258394822,20.0,25.52,25.498,20.0]
[1674258395025,20.0,25.52,25.5,19.51]
[1674258395235,20.0,25.52,25.501,20.0]
[1674258395443,20.0,25.52,25.502,17.0]
[1674258395664,20.0,25.52,25.502,40.20456119]
[1674258395852,20.0,25.52,25.503,20.0]
[1674258396192,20.0,25.52,25.504,40.20456119]
[1674258396381,20.0,25.52,25.505,20.0]
[1674258396598,20.0,25.523,25.506,17.0]
[1674258396807,20.0,25.523,25.507,20.0]
[1674258397019,20.0,25.523,25.508,17.0]
[1674258397231,20.0,25.523,25.509,20.0]
[1674258397446,20.0,25.523,25.51,17.0]
[1674258397643,20.0,25.523,25.511,20.0]
[1674258397852,20.0,25.523,25.512,17.0]
[1674258398075,20.0,25.523,25.513,20.0]
[1674258398286,20.0,25.523,25.514,17.0]
[1674258398493,20.0,25.523,25.515,20.0]
[1674258399027,20.0,25.532,25.516,17.0]
[1674258399220,20.0,25.532,25.517,20.0]
[1674258399432,20.0,25.532,25.518,17.0]
[1674258399668,20.0,25.543,25.52,20.0]
[1674258399857,20.0,25.543,25.521,17.0]
[1674258400070,20.0,25.543,25.522,20.0]
[1674258400807,2.76614,25.538,25.515,20.0]
[1674258401006,19.26614,25.538,25.503,20.0]
[1674258401219,20.0,25.537,25.506,23.20456119]
[1674258401426,20.0,25.537,25.511,20.0]
[1674258401669,20.0,25.537,25.512,28.2]
[1674258401972,20.0,25.537,25.513,23.20456119]
[1674258402175,20.0,25.543,25.52,19.4]
[1674258402389,20.0,25.543,25.521,45.19]
[1674258402601,20.0,25.543,25.522,20.0]
[1674258402797,20.0,25.543,25.523,45.19]
[1674258403008,20.0,25.543,25.524,20.0]
[1674258403212,20.0,25.543,25.525,17.0]
[1674258403532,20.0,25.543,25.526,20.0]
[1674258403751,20.0,25.543,25.527,17.0]
[1674258403961,20.0,25.543,25.528,20.0]
[1674258404172,20.0,25.543,25.529,17.0]
[1674258404375,20.0,25.543,25.53,20.0]
[1674258404589,20.0,25.543,25.531,17.0]
[1674258404909,20.0,25.546,25.531,17.0]
[1674258404910,131.3408,25.56,25.532,20.0]
[1674258405103,131.3408,25.56,25.533,17.0]
[1674258405312,19.5,25.554,25.534,20.0]
[1674258405524,20.0,25.56,25.54,19.58]
[1674258405752,20.0,25.56,25.541,57.0]
[1674258405968,20.0,25.56,25.541,80.25901282]
[1674258406179,20.0,25.56,25.542,50.99901282]
[1674258406395,20.0,25.56,25.543,37.0]
[1674258406903,20.0,25.567,25.544,23.25901282]
[1674258407102,20.0,25.567,25.545,37.0]
[1674258407312,20.0,25.567,25.55,19.45]
[1674258407532,20.0,25.567,25.551,37.0]
[1674258407740,20.0,25.567,25.552,20.0]
[1674258407957,20.0,25.567,25.553,17.0]
[1674258408280,20.0,25.567,25.554,20.0]
[1674258408466,20.0,25.567,25.555,17.0]